Cogmind - Beta 11.1 @@@ ROGUE MODE // 2022.06.28 @ 12:34:33 Player: Cyurio Result: Self-destructed Performance ------------- Evolutions (3) 1500 Regions Visited (4) 800 Robots Destroyed (9) 45 Value Destroyed (172) 172 Prototype IDs (1) 20 Alien Tech Used (0) 0 Bonus (0) 0 TOTAL SCORE: 2537 Bonus ------- None Cogmind --------- Core Integrity 449/700 Matter 192/300 Energy 150/150 System Corruption 0% Temperature Cool (18) Movement Core (250) Ox4 Location -7/Factory Parts ------- > --- POWER (1) -------- Micro Nuclear Core > --- PROPULSION (6) --- (None) > --- UTILITY (4) ------ Small Storage Unit Advanced Visual Processing Unit > --- WEAPON (2) ------- Assault Rifle > --- INVENTORY (8) ---- Micro Nuclear Core Medium Storage Unit Large Storage Unit Machine Analyzer Datajack Improved Datajack Peak State ------------ > --- POWER ------------ Light Nuclear Core > --- PROPULSION ------- Improved Flight Unit > --- UTILITY ---------- Small Storage Unit Advanced Weight Redist. System Advanced Visual Processing Unit Advanced ECM Suite > --- WEAPON ----------- (None) > --- INVENTORY -------- Micro Nuclear Core Micro Nuclear Core Medium Storage Unit Large Storage Unit Assault Rifle Datajack Improved Datajack [Rating: 18] Favorites ----------- Power Ion Engine Engine Ion Engine Power Core Light Nuclear Core Propulsion Aluminum Leg Leg Aluminum Leg Wheel Wheel Flight Unit VTOL Module Utility Heat Sink Device Heat Sink Storage Medium Storage Unit Processor Advanced Visual Processing Unit Hackware Hacking Suite Weapon Light Assault Rifle Energy Gun Medium Laser Ballistic Gun Light Assault Rifle Special Melee Weapon Datajack Build | -11 -10 -9 -8 -7 ------- Run | Scr Mat Mat Mat Fac Slots Evolved 6 | . . 2 2 2 Power . | . . . . . Propulsion 4 | . . 2 1 1 Utility 2 | . . . 1 1 Weapon . | . . . . . Parts Attached 24 | . 5 10 2 7 Power 6 | . 2 1 . 3 Engine 3 | . 2 1 . . Core 3 | . . . . 3 Reactor . | . . . . . Propulsion 6 | . . 6 . . Treads . | . . . . . Leg . | . . . . . Wheel 1 | . . 1 . . Hover . | . . . . . Flight 5 | . . 5 . . Utility 8 | . 2 1 2 3 Device 3 | . 1 . . 2 Storage 2 | . 1 1 . . Processor 2 | . . . 1 1 Hackware 1 | . . . 1 . Protection . | . . . . . Artifact . | . . . . . Weapon 4 | . 1 2 . 1 Energy Gun 1 | . 1 . . . Energy Cannon . | . . . . . Ballistic Gun 1 | . . . . 1 Ballistic Cannon . | . . . . . Launcher . | . . . . . Special Weapon . | . . . . . Impact Weapon . | . . . . . Slashing Weapon . | . . . . . Piercing Weapon . | . . . . . Special Melee Weapon 2 | . . 2 . . Unidentified Prototypes 1 | . . 1 . . Parts Lost 13 | . . 4 6 3 Power 3 | . . 1 1 1 Propulsion 6 | . . 3 2 1 Utility 3 | . . . 2 1 Weapon 1 | . . . 1 . Highest Loss Streak 4 | . . 2 4 3 To Critical Strikes . | . . . . . Average Slot Usage (%) 77 | . 95 90 57 36 Engine 9 | . 14 11 7 . Leg 14 | . 28 . . . Flight 9 | . . 36 20 6 Device 8 | . 9 11 2 4 Storage 10 | . 14 7 9 7 Processor 3 | . . . 5 12 Energy Gun 7 | . 14 . . . Ballistic Gun 9 | . 14 11 9 . Special Melee Weapon 1 | . . 9 . . Naked Turns . | . . . . . Heaviest Build 19 | 12 19 16 10 13 Greatest Support 20 | 20 20 16 13 14 Greatest Overweight (x) 1 | . . 1 . . Average Overweight (x) . | . . . . . Largest Inventory Capacity 10 | 8 10 10 8 8 Average Capacity 8 | 8 9 8 8 8 Most Carried 10 | 5 10 9 7 8 Average Carried 7 | 5 8 6 5 7 Final Capacity 10 | 8 10 8 8 8 Final Carried 10 | 4 10 5 7 6 Class Distribution -------------------- 87% | Mutant 12% | Sprinter Dominant Class ---------------- Mutant | -10/Materials Sprinter | -9/Materials Mutant | -8/Materials Mutant | -7/Factory Resources | -11 -10 -9 -8 -7 ----------- Run | Scr Mat Mat Mat Fac Matter Collected 349 | 159 109 81 . . Remotely . | . . . . . Salvage Created 199 | . 145 . . 54 Parts 20 | . 18 . . 2 Haulers Intercepted . | . . . . . Recyclers Shooed . | . . . . . Parts Field Recycled . | . . . . . Retrieved Matter . | . . . . . Parts Self-Destructed . | . . . . . Prevented . | . . . . . Kills | -11 -10 -9 -8 -7 ------- Run | Scr Mat Mat Mat Fac Combat Hostiles Destroyed 9 | . 7 . . 2 Guns 9 | . 7 . . 2 Classes Destroyed 2 | . 2 . . . Swarmer 7 | . 5 . . 2 Grunt 2 | . 2 . . . Best Kill Streak 3 | . 3 . . 2 Combat Bots Only 3 | . 3 . . 2 Max Kills in Single Turn 1 | . 1 . . 1 Gunslinging . | . . . . . Exploded . | . . . . . Melee . | . . . . . Uniques/NPCs Destroyed . | . . . . . Combat | -11 -10 -9 -8 -7 -------- Run | Scr Mat Mat Mat Fac Damage Taken 1509 | . 429 270 335 475 Core 570 | . 119 69 131 251 Absorbed by Shields . | . . . . . Core Remaining (%) 77 | 100 52 82 76 . Volleys Fired 52 | . 32 4 1 15 Largest 2 | . 2 1 1 1 Hottest 70 | . 70 20 20 20 Shots Fired 84 | . 64 4 1 15 Gun 84 | . 64 4 1 15 Cannon . | . . . . . Launcher . | . . . . . Special . | . . . . . Kinetic 52 | . 32 4 1 15 Thermal 32 | . 32 . . . Explosive . | . . . . . Electromagnetic . | . . . . . Robot Hit Streak 12 | . 12 2 . 5 Robot Miss Streak 4 | . 4 1 1 2 Penetration Max . | . . . . . Secondary Targets 1 | . 1 . . . Max Gunslinging Chain 1 | . 1 . . . Shots Hit Robots 53 | . 38 4 . 11 Core Hits 17 | . 12 . . 5 Critical Kills . | . . . . . Critical Parts Destroyed . | . . . . . Critical Strikes 2 | . 2 . . . Burn 2 | . 2 . . . Melee Attacks 1 | . . 1 . . Impact . | . . . . . Slashing . | . . . . . Piercing . | . . . . . Sneak Attacks . | . . . . . Combat Hostiles . | . . . . . Follow-up Attacks . | . . . . . Damage Inflicted 560 | . 404 24 . 132 Guns 551 | . 395 24 . 132 Cannons . | . . . . . Explosions . | . . . . . Melee . | . . . . . Ramming 9 | . 9 . . . Kinetic 297 | . 141 24 . 132 Thermal 254 | . 254 . . . Explosive . | . . . . . Electromagnetic . | . . . . . Impact . | . . . . . Slashing . | . . . . . Piercing . | . . . . . Highest Corruption 1 | . . . 1 . Average Corruption 1 | . . . 1 . Corruption Purged . | . . . . . Corruption Blocked . | . . . . . Overload Shots . | . . . . . Overflow Damage . | . . . . . Projectiles . | . . . . . Explosions . | . . . . . Melee . | . . . . . Knockbacks . | . . . . . Impact . | . . . . . Kinetic . | . . . . . Secondary . | . . . . . Self-Inflicted Damage . | . . . . . Shots . | . . . . . Rammed . | . . . . . Targets Rammed 1 | . 1 . . . Kicked 1 | . 1 . . . Crushed . | . . . . . Highest Temperature 49 | . 49 6 4 12 Average Temperature 17 | . 18 5 4 7 Received Heat Transfer 621 | . 153 141 135 192 Siege Activations . | . . . . . Robots Corrupted . | . . . . . Combat Hostiles . | . . . . . Parts Fried . | . . . . . Impact Corruptions . | . . . . . Robots Melted . | . . . . . Combat Hostiles . | . . . . . Parts Melted 2 | . 2 . . . Heat Transferred 865 | . 865 . . . Parts Sabotaged . | . . . . . Parts Stolen . | . . . . . Parts Stripped . | . . . . . Power Chain Reactions . | . . . . . Missiles Intercepted . | . . . . . Alert | -11 -10 -9 -8 -7 ------- Run | Scr Mat Mat Mat Fac Peak Influence 196 | . 196 100 71 165 Initial 45 | . . 45 42 14 Average 82 | . 99 72 53 63 Maximum Alert Level . | . . . . . Low Security (%) 100 | 100 100 100 100 100 Level 1 . | . . . . . Level 2 . | . . . . . Level 3 . | . . . . . Level 4 . | . . . . . Level 5 . | . . . . . High Security . | . . . . . Max Security . | . . . . . Squads Dispatched 6 | . 2 1 3 . Investigation . | . . . . . Extermination . | . . . . . Reinforcement 6 | . 2 1 3 . Assault . | . . . . . Garrison . | . . . . . Intercept . | . . . . . Searches Triggered . | . . . . . Construction Impeded . | . . . . . Haulers Reinforced . | . . . . . Active Scanning Responses . | . . . . . Cargo Convoy Interrupts . | . . . . . Stealth | -11 -10 -9 -8 -7 --------- Run | Scr Mat Mat Mat Fac Distress Signals 8 | . 2 3 1 2 Communications Jammed . | . . . . . Distress Signals . | . . . . . Times Spotted 65 | . 17 17 19 12 Peak Tracking Total 18 | . 4 10 18 14 Tactical Retreats 7 | . 4 1 . 2 Traps | -11 -10 -9 -8 -7 ------- Run | Scr Mat Mat Mat Fac Traps Triggered 1 | . . . 1 . Indirectly . | . . . . . Trap Hack Attempts . | . . . . . Triggered . | . . . . . Disarmed . | . . . . . Reprogrammed . | . . . . . Reused . | . . . . . Traps Extracted . | . . . . . Installed . | . . . . . Triggered . | . . . . . Machines | -11 -10 -9 -8 -7 ---------- Run | Scr Mat Mat Mat Fac Machines Disabled . | . . . . . Max in Single Turn . | . . . . . Machines Sabotaged . | . . . . . Garrisons Compromised . | . . . . . Overloaded Fab Kills . | . . . . . Hacking | -11 -10 -9 -8 -7 --------- Run | Scr Mat Mat Mat Fac Machines Accessed 10 | . 3 2 1 4 Terminals 8 | . 3 1 1 3 Fabricators 1 | . . . . 1 Repair Stations . | . . . . . Recycling Units . | . . . . . Scanalyzers 1 | . . 1 . . Garrison Access . | . . . . . Total Hacks 20 | . 8 4 3 5 Successful 10 | . 2 3 1 4 Failed 10 | . 6 1 2 1 Catastrophic . | . . . . . Database Lockouts . | . . . . . Manual 14 | . 7 2 3 2 Terminals 17 | . 8 2 3 4 Fabricators 1 | . . . . 1 Repair Stations . | . . . . . Recycling Units . | . . . . . Scanalyzers 2 | . . 2 . . Garrison Access . | . . . . . Terminal Hacks 4 | . 2 . . 2 Open DSF 1 | . . . . 1 Branch Access Points 1 | . 1 . . . Scanalyzer Index 1 | . 1 . . . Alert Level 1 | . . . . 1 Fabricator Hacks . | . . . . . Repair Station Hacks . | . . . . . Recycling Unit Hacks . | . . . . . Scanalyzer 2 | . . 2 . . Insert Component 1 | . . 1 . . Analyze 1 | . . 1 . . Garrison Access Hacks . | . . . . . Unauthorized Hacks 4 | . . 1 1 2 Terminals 4 | . . 1 1 2 Botnet 4 | . . 1 1 2 Fabricators . | . . . . . Repair Stations . | . . . . . Recycling Units . | . . . . . Scanalyzers . | . . . . . Garrison Access . | . . . . . Data Cores Recovered . | . . . . . Used . | . . . . . Hacking Detections 7 | . 2 1 1 3 Full Trace Events . | . . . . . Feedback Events . | . . . . . Feedback Blocked . | . . . . . Robot Schematics Acquired . | . . . . . Robots Built . | . . . . . Authchips . | . . . . . Time . | . . . . . Total Robot Build Rating . | . . . . . Part Schematics Acquired 1 | . . 1 . . Parts Built . | . . . . . Authchips . | . . . . . Time . | . . . . . Total Part Build Rating . | . . . . . Parts Repaired . | . . . . . Time . | . . . . . Parts Recycled . | . . . . . Recycled Matter . | . . . . . Retrieved Matter . | . . . . . Retrieved Components . | . . . . . Parts Scanalyzed 1 | . . 1 . . Part Schematics Acquired 1 | . . 1 . . Parts Damaged . | . . . . . Bothacking | -11 -10 -9 -8 -7 ------------ Run | Scr Mat Mat Mat Fac Used RIF Installer . | . . . . . Robots Hacked 1 | . . 1 . . Non-combat . | . . . . . Combat 1 | . . 1 . . Robot Hacks Applied 1 | . . 1 . . parse_system 1 | . . 1 . . Relay Couplers Released . | . . . . . Fabnet Peak Effective % . | . . . . . Robots Rewired . | . . . . . Allies Hacked . | . . . . . Hacks Repelled . | . . . . . Allies | -11 -10 -9 -8 -7 -------- Run | Scr Mat Mat Mat Fac Total Allies . | . . . . . Largest Group . | . . . . . Highest-Rated Group . | . . . . . Highest-Rated Ally . | . . . . . Total Orders . | . . . . . Ally Attacks . | . . . . . Total Damage . | . . . . . Kills . | . . . . . Allies Corrupted . | . . . . . Allies Melted . | . . . . . Intel | -11 -10 -9 -8 -7 ------- Run | Scr Mat Mat Mat Fac Robot Analysis Total . | . . . . . Derelict Logs Recovered . | . . . . . Drone Launches . | . . . . . Drone Recoveries . | . . . . . Exploration | -11 -10 -9 -8 -7 ------------- Run | Scr Mat Mat Mat Fac Turns Passed 1006 | 1 518 179 66 242 Spaces Moved 1234 | 1 329 280 167 457 Core . | . . . . . Treads . | . . . . . Legs 330 | 1 329 . . . Wheels 68 | . . 68 . . Hover . | . . . . . Flight 836 | . . 212 167 457 Fastest Speed 26 | 120 120 26 30 40 Average Speed 61 | 120 120 43 33 40 Slowest Speed 120 | 120 120 95 40 40 Overloaded Moves . | . . . . . Propulsion Burnouts . | . . . . . Robots Hopped 20 | . . 11 7 2 Cave-ins Triggered . | . . . . . Exploration Rate (%) 26 | 2 64 32 19 16 Regions Visited 4 Branch Regions . Pre-discovered Areas . | . . . . . Known Exits Taken . | . . . . . Unknown Exits Taken 4 | 1 1 1 1 . Scrap Searched . | . . . . . Spaces Dug . | . . . . . Terrain Destroyed . | . . . . . Melee . | . . . . . Projectile . | . . . . . AOE . | . . . . . Terrain Rammed . | . . . . . Walls Destroyed . | . . . . . Machines Disabled . | . . . . . Actions | -11 -10 -9 -8 -7 --------- Run | Scr Mat Mat Mat Fac Total 1389 | 2 396 323 168 500 Wait 64 | . 12 33 4 15 Move 1192 | . 328 258 153 453 Hop 18 | . . 10 6 2 Pick Up 16 | . 10 . 2 4 Fast Attach 9 | . 3 2 2 2 Attach 11 | . . 6 . 5 Detach 7 | . 1 4 . 2 Swap 4 | . 2 2 . . Drop 14 | 2 7 3 . 2 Fire 52 | . 32 4 1 15 Melee 1 | . . 1 . . Ram . | . . . . . Kick 1 | . 1 . . . Crush . | . . . . . Escape Stasis . | . . . . . Rewire . | . . . . . Trap . | . . . . . Miscellaneous . | . . . . . Route ------- -11/Scrapyard -10/Materials (discovered 3 exits: *Mat / *Min x2) -9/Materials -8/Materials -7/Factory (discovered 1 exit: [*Low]) History --------- Turn | Location | Event 2 | -11/Scrapyard | Discovered new exit (range 0) 2 | -11/Scrapyard | Entered Materials 248 | -10/Materials | Discovered new exit (range 14) 303 | -10/Materials | Build established: Mutant 381 | -10/Materials | Discovered new exit (range 15) 408 | -10/Materials | Identified exit to Mines 413 | -10/Materials | Discovered new exit (range 3) 520 | -10/Materials | Entered another Materials area 520 | -9/Materials | Evolved 2 slots: Propulsion x2 694 | -9/Materials | Discovered new exit (range 9) 699 | -9/Materials | Entered another Materials area 699 | -8/Materials | Evolved 2 slots: Propulsion x1, Utility x1 740 | -8/Materials | Discovered new exit (range 20) 747 | -8/Materials | Lost 3 parts (1p1n1u) 765 | -8/Materials | Entered Factory 765 | -7/Factory | Evolved 2 slots: Propulsion x1, Utility x1 794 | -7/Factory | Lost 4 parts (1p1n1u1w) 811 | -7/Factory | Discovered new exit (range 16) 1007 | -7/Factory | Self-destructed Last Messages --------------- Trojan loaded successfully. Testing... Terminal linked with 1 system. Awaiting botnet instructions. >>Alert(Check) Current Alert Level: Low Security 00948_ Acquired Machine Analyzer. 00965_ Critical hit (Burn: +37). 00972_ W-25 Informer sends out distress signal. 00975_ Dropped Adv. ECM Suite. 00982_ Lgt. Nuclear Core destroyed. 00986_ S-27 Virus destroyed. 00987_ W-25 Informer sends out distress signal. 00990_ K-01 Serf collects debris. 00997_ S-27 Virus destroyed. 00998_ K-01 Serf collects debris. 00999_ Imp. Flight Unit destroyed. 01001_ R-06 Scavenger collects Autogun. 01001_ Adv. Weight Redist. System destroyed. 01004_ R-06 Scavenger collects VTOL Module. Map ----- +----------------------------------------------------+ | ????????????????????????????? ???????????????????? | | ????????????????????????????? ???????????????????? | | ????????????????????????????? ?????#####????????? | | ?????????????????????????????? ###### #????????? | | ??????????????????????????????? #????????? | | ???????????????????????????????# #????????? | | ???????????????????????????????# ########## | | ???????????????????????????????# # | | ???????????????????????????????# # """ """ | | ???????????????????????????????# # """ """ | | ???????????????????????????????# # """ """ | | ???????????????????????????????# # | | ???????????????????????????????# # | | ???????????????????????????????# # ? | | ???????????????????????????????# #? !??? | | ???????????????????????????????# ####+###?? | | ???????????????????????????????# ### | | ???????????????????????????????# | | ???????????????????????????????# | | ???????????????????????????????# | | ???????????????????????????????# | | ???????????????????????#########/## | | ???????????????????????# T gg## | | ???????????????????????# g ## | | ???????????????????????# * wk ## | | ???????????????????????# @% [ ## | | ???????????????????????###g######## | | ???????????????????????? r r???? ############## | | ??????????????????????? ######??#####????????????? | | ????????????????????? ??????????????????????????? | | ????????????????????# ???????????????????????????? | | ????????????????????#????????????????????????????? | | ?????????????????????????????????????????????????? | | ?????????????????????????????????????????????????? | | ?????????????????????????????????????????????????? | | ?????????????????????????????????????????????????? | | ?????????????????????????????????????????????????? | | ?????????????????????????????????????????????????? | | ?????????????????????????????????????????????????? | | ?????????????????????????????????????????????????? | | ?????????????????????????????????????????????????? | | ?????????????????????????????????????????????????? | | ?????????????????????????????????????????????????? | | ?????????????????????????????????????????????????? | | ?????????????????????????????????????????????????? | | ?????????????????????????????????????????????????? | | ?????????????????????????????????????????????????? | | ?????????????????????????????????????????????????? | | ?????????????????????????????????????????????????? | | ?????????????????????????????????????????????????? | +----------------------------------------------------+ Best States ------------- Heat Dissipation 41 Energy Generation 15 Energy Capacity 250 Matter Stores 300 Matter Capacity 300 Sight Range 20 Terrain Scan Density 10 ECM Strength 2 Additional Mass Support 9 Evasion (%) 64 Offensive Hacking 10 Item Schematics ----------------- Lgt. Ion Engine | -9/Materials | Scanalyzed Robot Schematics ------------------ None Fabricated ------------ Nothing Alien Tech Used ----------------- None Achievements -------------- None Challenges ------------ None Game ------ Seed DerelictReactionStripper Manual? 0 Play Time 00:20:26 Cumulative 39.1 hours Start 2022.06.28 @ 12:14:05 End 2022.06.28 @ 12:34:33 Sessions 1 Manual Loads 0 Difficulty Rogue Special Mode None Game No. 65 Rogue 65 Adventurer 0 Explorer 0 Win Type - Total 0 Types 0/0/0/0/0/0/0/0/0 Lore% 26 Gallery% 30 Achievement% 27 Wizard Run 0 Options --------- ASCII 0 Keyboard 1 Movement Vi Keybinds 1 Fullscreen 1 Font 24/Smallcaps Map View 76x50 Tactical HUD 1 Map Filters NONE Filters NONE Steam 1 RUN: 74bf2be4-ba7f-4caf-b883-2e965cc13a57